Workbook

Sheet Приложение №2
A1: "СОГЛАСОВАНО" | AF1: "УТВЕРЖДАЮ" | AN1: Приложение №2
A2: Директор РЦФКиЮС МДМиС РТ | AF2: Начальник УФиС Исполнительного комитета
A4: ____________________ /М.Т.Рахматуллина/ | AF4: _____________________/Н.Ш. Безрукова/
A7: ПЛАН КОМПЛЕКТОВАНИЯ
A8: Муниципального бюджетного учреждения дополнительного образования города Набережные Челны "Детско-юношеской спортивной школы "Челны"
A9: на 2016 - 2017 учебный год
A11: № | B11: Ф.И.О. | D11: Образование | E11: Штат/совмес. | F11: СО | I11: НП | R11: Т (СС) | AG11: ССМ | AM11: ВСМ | AP11: Всего групп | AQ11: Всего учащ. | AR11: Кол-во час/нед | AS11: Сумма % по нормативу
J12: 1 г.о. | L12: 2 г.о. | O12: 3 г.о. | R12: 1 г.о. | U12: 2 г.о. | X12: 3 г.о. | AA12: 4 г.о. | AD12: 5 г.о. | AG12: 1 г.о. | AJ12: 2 г.о.
F13: групп | G13: учащихся | H13: часы | I13: групп | J13: учащихся | K13: часы | L13: групп | M13: учащихся | N13: часы | O13: групп | P13: учащихся | Q13: часы | R13: групп | S13: учащихся | T13: часы | U13: групп | V13: учащихся | W13: часы | X13: групп | Y13: учащихся | Z13: часы | AA13: групп | AB13: учащихся | AC13: часы | AD13: групп | AE13: учащихся | AF13: часы | AG13: групп | AH13: учащихся | AI13: часы | AJ13: групп | AK13: учащихся | AL13: часы | AM13: групп | AN13: учащихся | AO13: часы
A14: ОТДЕЛЕНИЕ ХОККЕЯ
F15: 1.5% | I15: 2.4% | L15: 3.6% | O15: 3.6% | R15: 5.6% | U15: 8.3% | X15: 10.0% | AA15: 10.0% | AD15: 11.1% | AG15: 17.0% | AJ15: 20.0% | AM15: 25.0%
A16: 1 | B16: Улепнов Эдуард Анатольевич | C16: Улепнов Эдуард Анатольевич | D16: В | E16: Ш | AD16: 2 | AE16: 20 | AF16: 36 | AP16: =F16+I16+L16+R16+U16+X16+AA16+AD16+AG16+AJ16+AM16 -> 2 | AQ16: 20 | AR16: 36 | AS16: =G16*F15+J16*I15+M16*L15+S16*R15+V16*U15+Y16*X15+AB16*AA15+AE16*AD15+AH16*AG15 -> 2.220
A17: 2 | B17: Молчанюк Евгений Вячеславович | C17: Молчанюк Евгений Вячеславович | D17: В | E17: Ш | AA17: 2 | AB17: 20 | AC17: 36 | AP17: 2 | AQ17: 20 | AR17: 36 | AS17: =G17*F15+J17*I15+M17*L15+S17*R15+V17*U15+Y17*X15+AB17*AA15+AE17*AD15+AH17*AG15 -> 2.000
A18: 3 | B18: Девятовский Александр Николаевич | C18: Девятовский Александр Николаевич | D18: В | E18: Ш | AA18: 2 | AB18: 20 | AC18: 36 | AP18: 2 | AQ18: 20 | AR18: 36 | AS18: =G18*F15+J18*I15+M18*L15+S18*R15+V18*U15+Y18*X15+AB18*AA15+AE18*AD15+AH18*AG15 -> 2.000
A19: 4 | B19: Овчинников Вячеслав Федорович | C19: Овчинников Вячеслав Федорович | D19: В | E19: Ш | AA19: 1 | AB19: 9 | AC19: 18 | AP19: =F19+I19+L19+R19+U19+X19+AA19+AD19+AG19+AJ19+AM19 -> 1 | AQ19: =G19+J19+M19+S19+V19+Y19+AB19+AE19+AH19+AK19+AN19 -> 9 | AR19: =H19+K19+N19+T19+W19+Z19+AC19+AF19+AI19+AL19+AO19 -> 18 | AS19: =G19*F15+J19*I15+M19*L15+P19*O15+S19*R15+V19*U15+Y19*X15+AB19*AA15+AE19*AE16+AH19*AG15+AK19*AJ15+AN19*AM15 -> 0.900
B20: Овчинников Вячеслав Федорович | C20: Овчинников Вячеслав Федорович | D20: В | E20: Ш | U20: 1 | V20: 8 | W20: 15 | AP20: =F20+I20+L20+R20+U20+X20+AA20+AD20+AG20+AJ20 -> 1 | AQ20: =G20+J20+M20+S20+V20+Y20+AB20+AE20+AH20+AK20 -> 8 | AR20: =H20+K20+N20+T20+W20+Z20+AC20+AF20+AI20+AL20 -> 15 | AS20: =G20*F15+J20*I15+M20*L15+P20*O15+S20*R15+V20*U15+Y20*X15+AB20*AA15+AE20*AD15+AH20*AG15+AK20*AJ15+AN20*AM15 -> 0.664
A21: 5 | B21: Бубукин Владимир Иванович | C21: Бубукин Владимир Иванович | D21: В | E21: Ш | X21: 2 | Y21: 20 | Z21: 36 | AP21: 2 | AQ21: 20 | AR21: 36 | AS21: =G21*F15+J21*I15+M21*L15+S21*R15+V21*U15+Y21*X15+AB21*AA15+AE21*AD15+AH21*AG15 -> 2.000
A22: 6 | B22: Миннеханов Ильдар Анасович | C22: Миннеханов Ильдар Анасович | D22: В | E22: Ш | F22: 3 | G22: 45 | H22: 12 | X22: 1 | Y22: 8 | Z22: 18 | AP22: 4 | AQ22: 53 | AR22: 30 | AS22: =G22*F15+J22*I15+M22*L15+S22*R15+V22*U15+Y22*X15+AB22*AA15+AE22*AD15+AH22*AG15 -> 1.475
A23: 7 | B23: Ханов Рустам Дамирович | C23: Бикмухамедов Шаукат Газизович | D23: В | E23: Ш | X23: 2 | Y23: 20 | Z23: 36 | AP23: =F23+I23+L23+R23+U23+X23+AA23+AD23+AG23+AJ23+AM23 -> 2 | AQ23: 20 | AR23: 36 | AS23: =G23*F15+J23*I15+M23*L15+S23*R15+V23*U15+Y23*X15+AB23*AA15+AE23*AD15+AH23*AG15 -> 2.000
A24: 8 | B24: Сергейчев Виктор Николаевич | C24: Сергейчев Виктор Николаевич | D24: В | E24: Ш | F24: 1 | G24: 15 | H24: 4 | U24: 2 | V24: 20 | W24: 30 | AP24: 3 | AQ24: 35 | AR24: 34 | AS24: =G24*F15+J24*I15+M24*L15+S24*R15+V24*U15+Y24*X15+AB24*AA15+AE24*AD15+AH24*AG15 -> 1.885
A25: 9 | B25: Самигуллин Рафаэль Раилович | C25: Самигуллин Рафаэль Раилович | D25: В | E25: Ш | F25: 1 | G25: 15 | H25: 4 | R25: 3 | S25: 36 | T25: 30 | AP25: =F25+I25+L25+O25+R25+U25+X25+AA25+AD25+AG25 -> 4 | AQ25: =G25+J25+M25+P25+S25+V25+Y25 -> 51 | AR25: =H25+K25+N25+Q25+T25+W25+Z25 -> 34 | AS25: =G25*F15+J25*I15+M25*L15+P25*O15+S25*R15+V25*U15+Y25*X15 -> 2.241
A26: 10 | B26: Симонов Николай Александрович | D26: В | E26: Ш | L26: 1 | M26: 14 | N26: 9 | O26: 2 | P26: 28 | Q26: 18 | AP26: =F26+I26+L26+O26+R26+U26+X26+AA26+AD26+AG26 -> 3 | AQ26: =G26+J26+M26+P26+S26+V26+Y26+AB26+AE26+AH26 -> 42 | AR26: =H26+K26+N26+Q26+T26+W26+Z26+AC26+AF26+AI26+AL26 -> 27 | AS26: =G26*F15+J26*I15+M26*L15+P26*O15+S26*R15+V26*U15+Y26*X15+AB26*AA15+AE26*AD15+AH26*AG15+AK26*AJ15+AN26*AM15 -> 1.512
A27: 11 | B27: Соколов Евгений Иванович | D27: В | E27: Ш | L27: 1 | M27: 14 | N27: 9 | AP27: =F27+I27+L27+O27+R27+U27+X27+AA27+AD27+AG27+AJ27+AM27 -> 1 | AQ27: 14 | AR27: 9 | AS27: =G27*F15+J27*I15+M27*L15+P27*O15+S27*R15+V27*U15+Y27*X15+AB27*AA15+AE27*AD15+AH27*AG15+AK27*AJ15+AN27*AM15 -> 0.504
A28: 12 | B28: Шарапов Роберт Альбертович | D28: В | E28: Ш | L28: 3 | M28: 42 | N28: 27 | AP28: 3 | AQ28: 42 | AR28: 27 | AS28: =G28*F15+J28*I15+M28*L15+P28*O15+S28*R15+V28*U15+Y28*X15+AB28*AA15+AE28*AD15+AH28*AG15+AK28*AJ15+AN28*AM15 -> 1.512
A29: 13 | B29: Газимов Ильназ Рашитович | C29: Газимов Ильназ Рашитович | D29: В | E29: Ш | F29: 2 | G29: 30 | H29: 8 | I29: 3 | J29: 42 | K29: 18 | AP29: =F29+I29+L29+R29+U29+X29+AA29+AD29+AG29+AJ29 -> 5 | AQ29: =G29+J29+M29+S29+V29+Y29+AB29+AE29+AH29+AK29 -> 72 | AR29: =H29+K29+N29+T29+W29+Z29+AC29+AF29+AI29+AL29+AO29 -> 26 | AS29: =G29*F15+J29*I15+M29*L15+S29*R15+V29*U15+Y29*X15+AB29*AA15+AE29*AD15+AH29*AG15+AK29*AJ15 -> 1.458
A30: ИТОГО по отделению: | D30: 13/0 | E30: 13/0 | F30: =SUM(F16:F29) -> 7 | G30: 105 | H30: 28 | I30: 3 | J30: 42 | K30: 18 | L30: 5 | M30: 70 | N30: 45 | O30: 2 | P30: 28 | Q30: 18 | R30: 3 | S30: 36 | T30: 30 | U30: 3 | V30: 28 | W30: 45 | X30: 5 | Y30: 48 | Z30: 90 | AA30: 5 | AB30: 49 | AC30: 90 | AD30: 2 | AE30: 20 | AF30: 36 | AG30: =AG16+AG17+AG18+AG19+AG20+AG21+AG22+AG23+AG24+AG25+AG26+AG27+AG28+AG29 -> 0 | AH30: 0 | AI30: 0 | AJ30: 0 | AK30: 0 | AL30: 0 | AM30: 0 | AN30: 0 | AO30: 0 | AP30: =SUM(AP16:AP29) -> 35 | AQ30: =SUM(AQ16:AQ29) -> 426 | AR30: =SUM(AR16:AR29) -> 400 | AS30: =SUM(AS16:AS29) -> 22.371
A31: из них по программе спортивной подготовки | F31: =F16+F17+F18+F19 -> 0 | G31: 0 | H31: 0 | I31: 0 | J31: 0 | K31: 0 | L31: 0 | M31: 0 | N31: 0 | O31: 0 | P31: 0 | Q31: =Q16+Q18+Q17+Q19 -> 0 | R31: =R16+R17+R18+R19 -> 0 | S31: 0 | T31: 0 | U31: 0 | V31: 0 | W31: 0 | X31: 0 | Y31: 0 | Z31: 0 | AA31: 5 | AB31: 49 | AC31: 90 | AD31: 2 | AE31: 20 | AF31: 36 | AG31: 0 | AH31: 0 | AI31: 0 | AJ31: 0 | AK31: 0 | AL31: 0 | AM31: 0 | AN31: 0 | AO31: 0 | AP31: 7 | AQ31: 69 | AR31: 126 | AS31: 7.120
A32: ОТДЕЛЕНИЕ ФИГУРНОГО КАТАНИЯ НА КОНЬКАХ
F33: 1.1% | I33: 2.8% | L33: 4.4% | O33: 4.4% | R33: 11.1% | U33: 16.7% | X33: 16.7% | AA33: 18.5% | AD33: 18.5% | AG33: 20.0% | AJ33: 30.0% | AM33: 40.0%
A34: 14 | B34: Ахметзянова Наталья Николаевна | C34: Ахметзянова Наталья Николаевна | D34: В | E34: Ш | AD34: 1 | AE34: 8 | AF34: 18 | AP34: =AA34+AD34+AG34+AJ34 -> 1 | AQ34: =AB34+AE34+AH34+AK34+AN34 -> 8 | AR34: =AC34+AF34+AI34+AL34+AO34 -> 18 | AS34: =AB34*AA33+AE34*AD33+AH34*AG33+AK34*AJ33 -> 1.480
B35: Ахметзянова Наталья Николаевна | C35: Ахметзянова Наталья Николаевна | D35: В | E35: Ш | U35: 1 | V35: 6 | W35: 18 | AP35: =F35+I35+L35+R35+U35+X35+AA35+AD35+AG35+AJ35+AM35 -> 1 | AQ35: 6 | AR35: 18 | AS35: =G35*F33+J35*I33+M35*L33+P35*O33+S35*R33+V35*U33+Y35*X33+AB35*AA33+AE35*AD33+AH35*AG33+AK35*AJ33+AN35*AM33 -> 1.002
A36: 15 | B36: Шашлакова Наталья Владимировна | C36: Шашлакова Наталья Владимировна | D36: В | E36: Ш | I36: 1 | J36: 20 | K36: 10 | R36: 1 | S36: 8 | T36: 16 | AP36: 2 | AQ36: =G36+J36+M36+S36+V36+Y36+AB36+AE36+AH36+AK36+AN36 -> 28 | AR36: 26 | AS36: =G36*F33+J36*I33+M36*L33+S36*R33+V36*U33+Y36*X33+AB36*AA33+AE36*AD33+AH36*AG33+AK36*AJ33 -> 1.448
A37: 16 | B37: Махранова Марина Александровна | C37: Махранова Марина Александровна | D37: В | E37: Ш | L37: 2 | M37: 30 | N37: 24 | O37: 1 | P37: 15 | Q37: 12 | AP37: 3 | AQ37: =G37+J37+M37+P37+S37+V37+Y37+AB37+AE37+AH37+AK37+AN37 -> 45 | AR37: 36 | AS37: =G37*F33+J37*I33+M37*L33+O33*P37+S37*R33+V37*U33+Y37*X33+AB37*AA33+AE37*AD33+AH37*AG33+AK37*AJ33 -> 1.980
A38: 17 | B38: Хабибуллина Диляра Фаилевна | D38: НВ | E38: Ш | F38: 1 | G38: 20 | H38: 4 | AP38: =F38+I38+L38+O38+R38+U38+X38+AA38+AD38+AG38 -> 1 | AQ38: =G38+J38+M38+P38+S38+V38+Y38+AB38+AE38+AH38+AK38 -> 20 | AR38: =H38+K38+N38+Q38+T38+W38+Z38+AC38+AF38+AI38+AL38 -> 4 | AS38: =F33*G38 -> 0.220
A39: 18 | B39: Варенова Татьяна Михайловна | D39: В | E39: Ш | T39: 2 | W39: 2 | AR39: =H39+K39+N39+T39+W39+Z39 -> 4 | AS39: 0.222
B40: Варенова Татьяна Михайловна | C40: Варенова Татьяна Михайловна (постановка программы на льду) | D40: В | E40: Ш | AF40: 3 | AR40: =AC40+AF40+AI40+AL40 -> 3 | AS40: 0.167
A41: 19 | B41: Молчанюк Ольга Юрьевна | D41: В | E41: Ш | N41: 4 | Q41: 2 | T41: 3 | W41: 3 | AR41: =H41+K41+N41+Q41+W41+T41+Z41+AC41+AF41+AI41+AL41 -> 12 | AS41: 0.667
B42: Молчанюк Ольга Юрьевна | C42: Новикова Юлия Викторовна (хореография) | D42: В | E42: Ш | AF42: 3 | AR42: =AC42+AF42+AI42+AL42+AO42 -> 3 | AS42: 0.167
A43: ИТОГО по отделению: | D43: 5/0 | E43: 6/0 | F43: =SUM(F34:F42) -> 1 | G43: 20 | H43: 4 | I43: 1 | J43: 20 | K43: 10 | L43: 2 | M43: 30 | N43: 28 | O43: =O35+O36+O37+O38+O39+O41 -> 1 | P43: =P35+P36+P37+P38+P39+P41 -> 15 | Q43: =Q35+Q36+Q37+Q38+Q39+Q41 -> 14 | R43: =SUM(R34:R42) -> 1 | S43: 8 | T43: 21 | U43: 1 | V43: 6 | W43: 23 | X43: =X34+X35+X36+X37+X38+X39+X40+X41+X42 -> 0 | Y43: =Y34+Y35+Y36+Y37+Y38+Y39+Y40+Y41+Y42 -> 0 | Z43: =Z34+Z35+Z36+Z37+Z38+Z39+Z40+Z41+Z42 -> 0 | AA43: =SUM(AA34:AA42) -> 0 | AB43: 0 | AC43: 0 | AD43: 1 | AE43: 8 | AF43: 24 | AG43: =AG34+AG35+AG36+AG37+AG38+AG39+AG40+AG41+AG42 -> 0 | AH43: 0 | AI43: 0 | AJ43: 0 | AK43: 0 | AL43: 0 | AM43: 0 | AN43: 0 | AO43: 0 | AP43: =SUM(AP34:AP42) -> 8 | AQ43: =SUM(AQ34:AQ42) -> 107 | AR43: =SUM(AR34:AR42) -> 124 | AS43: =SUM(AS34:AS42) -> 7.353
A44: из них по программе спортивной подготовки | F44: =F34+F40+F42 -> 0 | G44: 0 | H44: 0 | I44: 0 | J44: 0 | K44: 0 | L44: 0 | M44: 0 | N44: 0 | O44: 0 | P44: 0 | Q44: 0 | R44: 0 | S44: 0 | T44: 0 | U44: 0 | V44: 0 | W44: 0 | X44: 0 | Y44: 0 | Z44: 0 | AA44: 0 | AB44: 0 | AC44: 0 | AD44: 1 | AE44: 8 | AF44: 24 | AG44: 0 | AH44: 0 | AI44: 0 | AJ44: 0 | AK44: 0 | AL44: 0 | AM44: 0 | AN44: 0 | AO44: 0 | AP44: 1 | AQ44: 8 | AR44: 24 | AS44: 1.814
A45: ВСЕГО по организации | D45: 18/0 | E45: 19/0 | F45: =F30+F43 -> 8 | G45: 125 | H45: 32 | I45: 4 | J45: 62 | K45: 28 | L45: 7 | M45: 100 | N45: 73 | O45: 3 | P45: 43 | Q45: 32 | R45: 4 | S45: 44 | T45: 51 | U45: 4 | V45: 34 | W45: 68 | X45: 5 | Y45: 48 | Z45: 90 | AA45: 5 | AB45: 49 | AC45: 90 | AD45: 3 | AE45: 28 | AF45: 60 | AG45: 0 | AH45: 0 | AI45: 0 | AJ45: 0 | AK45: 0 | AL45: 0 | AM45: 0 | AN45: 0 | AO45: 0 | AP45: 43 | AQ45: =AQ30+AQ43 -> 533 | AR45: 524 | AS45: =AS30+AS43 -> 29.724
A46: из них по программе спортивной подготовки | F46: =F31+F44 -> 0 | G46: 0 | H46: 0 | I46: 0 | J46: 0 | K46: 0 | L46: 0 | M46: 0 | N46: 0 | O46: 0 | P46: 0 | Q46: 0 | R46: 0 | S46: 0 | T46: 0 | U46: 0 | V46: 0 | W46: 0 | X46: 0 | Y46: 0 | Z46: 0 | AA46: 5 | AB46: 49 | AC46: 90 | AD46: 3 | AE46: 28 | AF46: 60 | AG46: 0 | AH46: 0 | AI46: 0 | AJ46: 0 | AK46: 0 | AL46: 0 | AM46: 0 | AN46: 0 | AO46: 0 | AP46: 8 | AQ46: 77 | AR46: 150 | AS46: 8.934
D48: Директор организации | L48: ________________ /Р.Т. Файзрахманов/
M49: подпись | R49: расшифровка подписи
D50: Ответственный за составление | L50: ________________ /А.В. Шевяхов/
M51: подпись | R51: расшифровка подписи

Sheet ОБРАЗЕЦ
A1: "СОГЛАСОВАНО" | AC1: "УТВЕРЖДАЮ" | AK1: Приложение №2
A2: Директор РЦФКиЮС МДМиС РТ | AC2: Учредитель (Должность, Ф.И.О.)
A4: ____________________ /М.Т.Рахматуллина/ | AC4: __________________ /_______________________________ /
AC5: подпись | AI5: расшифровка подписи
A7: ПЛАН КОМПЛЕКТОВАНИЯ
A8: (полное наименование РСДЮСШОР, СДЮШОР, ДЮСШ)
A9: на 2014 - 2015 учебный год
A11: № | B11: Ф.И.О. | D11: Образование | E11: Штат/совмес. | F11: СО | I11: НП | O11: Т (СС) | AD11: ССМ | AJ11: ВСМ | AM11: Всего групп | AN11: Всего учащ. | AO11: Кол-во час/нед | AP11: Сумма % по нормативу
J12: 1 г.о. | L12: 2 г.о. | O12: 1 г.о. | R12: 2 г.о. | U12: 3 г.о. | X12: 4 г.о. | AA12: 5 г.о. | AD12: 1 г.о. | AG12: 2 г.о.
F13: групп | G13: учащихся | H13: часы | I13: групп | J13: учащихся | K13: часы | L13: групп | M13: учащихся | N13: часы | O13: групп | P13: учащихся | Q13: часы | R13: групп | S13: учащихся | T13: часы | U13: групп | V13: учащихся | W13: часы | X13: групп | Y13: учащихся | Z13: часы | AA13: групп | AB13: учащихся | AC13: часы | AD13: групп | AE13: учащихся | AF13: часы | AG13: групп | AH13: учащихся | AI13: часы | AJ13: групп | AK13: учащихся | AL13: часы
A14: ОТДЕЛЕНИЕ ДЗЮДО
F15: 1.5% | I15: 2.2% | L15: 3.6% | O15: 4.6% | R15: 5.6% | U15: 7.8% | X15: 8.9% | AA15: 10.0% | AD15: 17.0% | AG15: 23.0% | AJ15: %
A16: 1 | D16: В | E16: Ш | L16: 2 | M16: 40 | N16: 18 | U16: 1 | V16: 12 | W16: 14 | AM16: 3 | AN16: 52 | AO16: 32 | AP16: 2.38
A17: 2 | D17: В | E17: Ш | I17: 2 | J17: 40 | K17: 12 | L17: 1 | M17: 20 | N17: 9 | AM17: 3 | AN17: 60 | AO17: 21 | AP17: 1.60
A18: 3 | D18: В | E18: Ш | F18: 1 | G18: 25 | H18: 4 | O18: 1 | P18: 18 | Q18: 10 | R18: 1 | S18: 15 | T18: 12 | AM18: 3 | AN18: 58 | AO18: 26 | AP18: 2.04
A19: ИТОГО по отделению: | E19: 3/0 | F19: 1 | G19: 25 | H19: 4 | I19: 2 | J19: 40 | K19: 12 | L19: 3 | M19: 60 | N19: 27 | O19: 1 | P19: 18 | Q19: 10 | R19: 1 | S19: 15 | T19: 12 | U19: 1 | V19: 12 | W19: 14 | X19: 0 | Y19: 0 | Z19: 0 | AA19: 0 | AB19: 0 | AC19: 0 | AD19: 0 | AE19: 0 | AF19: 0 | AG19: 0 | AH19: 0 | AI19: 0 | AJ19: 0 | AK19: 0 | AL19: 0 | AM19: 9 | AN19: 170 | AO19: 79 | AP19: 6.02
A20: ОТДЕЛЕНИЕ ХОККЕЯ С ШАЙБОЙ
F21: 1.5% | I21: 2.4% | L21: 3.6% | O21: 5.6% | R21: 8.3% | U21: 10.0% | X21: 10.0% | AA21: 11.0% | AD21: 17.0% | AG21: 20.0% | AJ21: %
A22: 4 | D22: В | E22: Ш | O22: 3 | P22: 45 | Q22: 36 | AM22: 3 | AN22: 45 | AO22: 36 | AP22: 2.52
A23: 5 | D23: В | E23: Ш | U23: 2 | V23: 36 | W23: 36 | AM23: 2 | AN23: 36 | AO23: 36 | AP23: 3.60
A24: 6 | D24: В | E24: Ш | AA24: 2 | AB24: 30 | AC24: 36 | AM24: 2 | AN24: 30 | AO24: 36 | AP24: 3.30
A25: 7 | D25: В | E25: Ш | AA25: 2 | AB25: 30 | AC25: 36 | AM25: 2 | AN25: 30 | AO25: 36 | AP25: 3.30
A26: 8 | D26: Н/В | E26: С | L26: 1 | M26: 15 | N26: 9 | AM26: 1 | AN26: 15 | AO26: 9 | AP26: 0.54
A27: 9 | D27: В | E27: Ш | AA27: 2 | AB27: 30 | AC27: 36 | AM27: 2 | AN27: 30 | AO27: 36 | AP27: 3.30
A28: 10 | D28: В | E28: Ш | X28: 2 | Y28: 36 | Z28: 36 | AM28: 2 | AN28: 36 | AO28: 36 | AP28: 3.60
A29: 11 | D29: Ср | E29: Ш | R29: 2 | S29: 36 | T29: 30 | AM29: 2 | AN29: 36 | AO29: 30 | AP29: 2.99
A30: ИТОГО по отделению: | E30: 7/1 | F30: 0 | G30: 0 | H30: 0 | I30: 0 | J30: 0 | K30: 0 | L30: 1 | M30: 15 | N30: 9 | O30: 3 | P30: 45 | Q30: 36 | R30: 2 | S30: 36 | T30: 30 | U30: 2 | V30: 36 | W30: 36 | X30: 2 | Y30: 36 | Z30: 36 | AA30: 6 | AB30: 90 | AC30: 108 | AD30: 0 | AE30: 0 | AF30: 0 | AG30: 0 | AH30: 0 | AI30: 0 | AJ30: 0 | AK30: 0 | AL30: 0 | AM30: 16 | AN30: 258 | AO30: 255 | AP30: 23,15
A31: ОТДЕЛЕНИЕ ФИГУРНОГО КАТАНИЯ
F32: 1.1% | I32: 2.8% | L32: 4.4% | O32: 11.1% | R32: 16.7% | U32: 16.7% | X32: 18.5% | AA32: 0.0% | AD32: 20.0% | AG32: 30.0% | AJ32: %
A33: 12 | D33: В | E33: Ш | I33: 1 | J33: 20 | K33: 10 | L33: 2 | M33: 38 | N33: 24 | AM33: 3 | AN33: 58 | AO33: 34 | AP33: 2.23
A34: 13 | D34: В | E34: Ш | I34: 1 | J34: 20 | K34: 10 | L34: 2 | M34: 38 | N34: 24 | AM34: 3 | AN34: 58 | AO34: 34 | AP34: 2.23
A35: 14 | D35: Н/В | E35: С | I35: 1 | J35: 20 | K35: 10 | AM35: 1 | AN35: 20 | AO35: 10 | AP35: 0.56
A36: ИТОГО по отделению | E36: 2/1 | F36: 0 | G36: 0 | H36: 0 | I36: 3 | J36: 60 | K36: 30 | L36: 4 | M36: 76 | N36: 48 | O36: 0 | P36: 0 | Q36: 0 | R36: 0 | S36: 0 | T36: 0 | U36: 0 | V36: 0 | W36: 0 | X36: 0 | Y36: 0 | Z36: 0 | AA36: 0 | AB36: 0 | AC36: 0 | AD36: 0 | AE36: 0 | AF36: 0 | AG36: 0 | AH36: 0 | AI36: 0 | AJ36: 0 | AK36: 0 | AL36: 0 | AM36: 7 | AN36: 136 | AO36: 78 | AP36: 5.02
A37: ВСЕГО по организации | E37: 12/2 | F37: 1 | G37: 25 | H37: 4 | I37: 5 | J37: 100 | K37: 42 | L37: 8 | M37: 151 | N37: 84 | O37: 4 | P37: 63 | Q37: 46 | R37: 3 | S37: 51 | T37: 42 | U37: 3 | V37: 48 | W37: 50 | X37: 2 | Y37: 36 | Z37: 36 | AA37: 6 | AB37: 90 | AC37: 108 | AD37: 0 | AE37: 0 | AF37: 0 | AG37: 0 | AH37: 0 | AI37: 0 | AJ37: 0 | AK37: 0 | AL37: 0 | AM37: 32 | AN37: 564 | AO37: 412 | AP37: 34.19
AO38: 22.9
D39: Директор организации | L39: ________________ /_________________________ / | AB39: Количество тренерских ставок по штатному расписанию _________
M40: подпись | O40: расшифровка подписи
D41: Ответственный за составление | L41: ________________ /_________________________ /
M42: подпись | O42: расшифровка подписи
